Cogmind - Beta 16.1 @@@ ROGUE MODE // 2026.03.22 @ 11:32:14 Player: whodovoodoo Result: Destroyed by R6-TNF(R) with Subdweller Machine Gun Performance ------------- Evolutions (0) 0 Regions Visited (3) 600 Robots Destroyed (8) 40 Value Destroyed (154) 154 Prototype IDs (0) 0 Alien Tech Used (0) 0 Bonus (0) 0 TOTAL SCORE: 794 Bonus ------- None Cogmind --------- Core Integrity 0/250 Matter 300/300 Energy 100/100 System Corruption 6% Temperature Cool (0) Movement Core (200) Ox3 Location -10/Subcaves Parts ------- > --- POWER (1) -------- (None) > --- PROPULSION (2) --- (None) > --- UTILITY (2) ------ Medium Storage Unit > --- WEAPON (2) ------- (None) > --- INVENTORY (10) --- Light Ion Engine Light Ion Engine Light Ion Engine Subdweller Power Source Aluminum Leg Aluminum Leg Compact Wheel Compact Wheel Scrap Shield Fragment (43) Scrap Shield Fragment (39) Peak State ------------ > --- POWER ------------ Ion Engine > --- PROPULSION ------- Wheel Wheel > --- UTILITY ---------- Medium Storage Unit Improved Terrain Scanner > --- WEAPON ----------- Medium Laser Medium Laser > --- INVENTORY -------- Light Ion Engine Light Ion Engine Light Ion Engine Aluminum Leg Aluminum Leg Wheel Wheel Compact Wheel Compact Wheel Small Laser [Rating: 10] Favorites ----------- Power Ion Engine Engine Ion Engine Propulsion Wheel Wheel Wheel Utility Improved Terrain Scanner Device Improved Terrain Scanner Storage Medium Storage Unit Weapon Medium Laser Energy Gun Medium Laser Build | -11 -10 -10 -10 ------- Run | Yrd Mat Min Sub Slots Evolved . | . . . . Power . | . . . . Propulsion . | . . . . Utility . | . . . . Weapon . | . . . . Parts Attached 11 | 7 1 . 3 Power 1 | 1 . . . Engine 1 | 1 . . . Core . | . . . . Reactor . | . . . . Propulsion 4 | 2 . . 2 Treads . | . . . . Leg . | . . . . Wheel 4 | 2 . . 2 Hover . | . . . . Flight . | . . . . Utility 3 | 2 1 . . Device 1 | 1 . . . Storage 2 | 1 1 . . Processor . | . . . . Hackware . | . . . . Protection . | . . . . Artifact . | . . . . Weapon 3 | 2 . . 1 Energy Gun 3 | 2 . . 1 Energy Cannon . | . . . . Ballistic Gun . | . . . . Ballistic Cannon . | . . . . Launcher . | . . . . Special Weapon . | . . . . Impact Weapon . | . . . . Slashing Weapon . | . . . . Piercing Weapon . | . . . . Special Melee Weapon . | . . . . Unidentified Prototypes . | . . . . Parts Lost 8 | . . . 8 Power . | . . . . Propulsion 4 | . . . 4 Utility 1 | . . . 1 Weapon 3 | . . . 3 Highest Loss Streak 8 | . . . 8 To Critical Strikes . | . . . . Average Backups 8 | 4 8 10 9 Power 2 | 1 3 3 3 Propulsion 5 | 2 4 6 5 Utility . | . . . . Weapon . | . 1 1 . Tool/Special . | . . . . Unused Backups 8 | . . . 8 Power 4 | . . . 4 Propulsion 4 | . . . 4 Utility . | . . . . Weapon . | . . . . Tool/Special . | . . . . Average Slot Usage (%) 94 | . 100 100 88 Engine 13 | . 14 14 13 Wheel 26 | . 28 28 24 Device 13 | . 14 14 12 Storage 14 | . 14 14 14 Energy Gun 25 | . 28 28 22 Peak Build Rating 10 | 9 10 10 10 Average Rating 8 | 6 9 10 8 On Entrance 7 | . 9 10 10 Avg Prop Armor Cover (%) . | . . . . Naked Turns . | . . . . Heaviest Build 20 | 15 20 20 20 Greatest Support 20 | 20 20 20 20 Greatest Overweight (x) 5 | . . . 5 Average Overweight (x) . | . . . . Largest Inventory Capacity 10 | 8 10 10 10 Average Capacity 9 | 7 8 10 10 Most Carried 10 | 8 10 10 10 Average Carried 8 | 4 8 10 9 Final Capacity 10 | 8 10 10 10 Final Carried 10 | 8 10 10 10 Class Distribution -------------------- 100% | Mutant Dominant Class ---------------- Mutant | -10/Materials Mutant | -10/Mines Mutant | -10/Subcaves Resources | -11 -10 -10 -10 ----------- Run | Yrd Mat Min Sub Matter Collected 368 | 337 . 13 18 Remotely . | . . . . Salvage Created 302 | 147 . 30 125 Parts 17 | 9 . . 8 Haulers Intercepted . | . . . . Recyclers Shooed . | . . . . Parts Field Recycled . | . . . . Retrieved Matter . | . . . . Parts Self-Destructed 7 | . . . 7 Prevented . | . . . . Parts Restored . | . . . . Kills | -11 -10 -10 -10 ------- Run | Yrd Mat Min Sub Combat Hostiles Destroyed 3 | . . . 3 Guns 3 | . . . 3 Classes Destroyed 3 | 2 . . 1 Tunneler 4 | 3 . 1 . Recycler 1 | 1 . . . Subdweller 3 | . . . 3 Best Kill Streak 3 | 3 . 1 1 Combat Bots Only 1 | . . . 1 Max Kills in Single Turn 1 | 1 . 1 1 Gunslinging . | . . . . Exploded . | . . . . Melee . | . . . . Uniques/NPCs Destroyed . | . . . . Combat | -11 -10 -10 -10 -------- Run | Yrd Mat Min Sub Hostile Shots Fired 40 | . . . 40 Missed 9 | . . . 9 Hits 31 | . . . 31 Projectile 31 | . . . 31 AOE 3 | . . . 3 Damage Taken 814 | . . 30 784 Core 258 | . . 7 251 Absorbed by Shields . | . . . . Core Remaining (%) 100 | 100 . . . Volleys Fired 32 | 14 . 1 17 Largest 2 | 2 . 2 2 Hottest 100 | 100 . 100 100 Shots Fired 50 | 28 . 2 20 Gun 50 | 28 . 2 20 Cannon . | . . . . Launcher . | . . . . Special . | . . . . Kinetic . | . . . . Thermal 50 | 28 . 2 20 Explosive . | . . . . Electromagnetic . | . . . . Robot Hit Streak 13 | 3 . 3 13 Robot Miss Streak 4 | 4 . . 1 Penetration Max . | . . . . Secondary Targets . | . . . . Shots Hit Robots 32 | 14 . 1 17 Core Hits 14 | 5 . 2 7 Critical Kills . | . . . . Critical Parts Destroyed . | . . . . Critical Strikes 1 | 1 . . . Burn 1 | 1 . . . Melee Attacks . | . . . . Impact . | . . . . Slashing . | . . . . Piercing . | . . . . Sneak Attacks . | . . . . Combat Hostiles . | . . . . Follow-up Attacks . | . . . . Damage Inflicted 431 | 192 . 61 178 Guns 377 | 192 . 12 173 Cannons . | . . . . Explosions . | . . . . Melee . | . . . . Ramming 54 | . . 49 5 Kinetic . | . . . . Thermal 377 | 192 . 12 173 Explosive . | . . . . Electromagnetic . | . . . . Impact . | . . . . Slashing . | . . . . Piercing . | . . . . Highest Corruption 6 | . . 1 6 Average Corruption 1 | . . 1 1 Corruption Purged . | . . . . Corruption Blocked . | . . . . Effects 4 | . . 2 2 Energy Discharges 1 | . . 1 . Parts Rejected 1 | . . . 1 Data Loss (minor) 1 | . . 1 . Data Loss (major) 1 | . . . 1 Overload Shots . | . . . . Overflow Damage . | . . . . Projectiles . | . . . . Explosions . | . . . . Melee . | . . . . Knockbacks 1 | . . 1 . Impact 1 | . . 1 . Kinetic . | . . . . Secondary . | . . . . Self-Inflicted Damage 25 | . . 23 2 Shots . | . . . . Rammed 6 | . . 5 1 Targets Rammed 6 | . . 5 1 Kicked . | . . . . Crushed . | . . . . Highest Temperature 390 | 390 . 39 2 Average Temperature 190 | 208 . 24 2 Received Heat Transfer 168 | . . . 168 Effects 3 | 3 . . . Energy Bleed 1 | 1 . . . Matter Decay 2 | 2 . . . Siege Activations . | . . . . Martial Activations . | . . . . Shielding Activations . | . . . . Robots Disrupted . | . . . . Combat Hostiles . | . . . . Robots Corrupted . | . . . . Combat Hostiles . | . . . . Parts Fried . | . . . . Impact Corruptions . | . . . . Robots Melted . | . . . . Combat Hostiles . | . . . . Parts Melted 2 | . . . 2 Heat Transferred 1137 | 629 . 37 471 Parts Sabotaged . | . . . . Parts Stolen . | . . . . Parts Stripped . | . . . . Power Chain Reactions . | . . . . Alert | -11 -10 -10 -10 ------- Run | Yrd Mat Min Sub Maximum Alert Level . | . . . . Low Security (%) 100 | 100 100 100 . Level 1 . | . . . . Level 2 . | . . . . Level 3 . | . . . . Level 4 . | . . . . Level 5 . | . . . . High Security . | . . . . Max Security . | . . . . Peak Influence 10 | 10 . 5 . Initial . | . . . . Average . | 2 . . . Influence Increases 25 | 20 . 5 . Destroy 0b10 Robot/NC 25 | 20 . 5 . Influence Decreases 25 | 20 . 5 . Time Decay 25 | 20 . 5 . Squads Dispatched 1 | . 1 . . Investigation 1 | . 1 . . Extermination . | . . . . Reinforcement . | . . . . Assault . | . . . . Garrison . | . . . . Intercept . | . . . . Searches Triggered . | . . . . Construction Impeded . | . . . . Haulers Reinforced . | . . . . Active Scanning Responses . | . . . . Cargo Convoy Interrupts . | . . . . Stealth | -11 -10 -10 -10 --------- Run | Yrd Mat Min Sub Distress Signals . | . . . . Communications Jammed . | . . . . Distress Signals . | . . . . Times Spotted 6 | . . . 6 Peak Tracking Total 3 | . . . 3 Tactical Retreats . | . . . . Traps | -11 -10 -10 -10 ------- Run | Yrd Mat Min Sub Traps Triggered . | . . . . Indirectly . | . . . . Trap Hack Attempts . | . . . . Triggered . | . . . . Disarmed 4 | . 4 . . Reprogrammed . | . . . . Reused . | . . . . Traps Extracted . | . . . . Installed . | . . . . Triggered . | . . . . Machines | -11 -10 -10 -10 ---------- Run | Yrd Mat Min Sub Machines Disabled . | . . . . Max in Single Turn . | . . . . Machines Repaired . | . . . . Machines Dismantled . | . . . . Machines Sabotaged . | . . . . Overloaded Fab Kills . | . . . . Hacking | -11 -10 -10 -10 --------- Run | Yrd Mat Min Sub Machines Accessed 2 | . 2 . . Terminals 2 | . 2 . . Fabricators . | . . . . Repair Stations . | . . . . Recycling Units . | . . . . Scanalyzers . | . . . . Garrison Access . | . . . . Total Hacks 6 | . 6 . . Successful 1 | . 1 . . Failed 5 | . 5 . . Catastrophic 1 | . 1 . . Database Lockouts . | . . . . Manual . | . . . . Terminals 6 | . 6 . . Fabricators . | . . . . Repair Stations . | . . . . Recycling Units . | . . . . Scanalyzers . | . . . . Garrison Access . | . . . . Terminal Hacks 1 | . 1 . . Disarm Traps 1 | . 1 . . Fabricator Hacks . | . . . . Repair Station Hacks . | . . . . Recycling Unit Hacks . | . . . . Scanalyzer . | . . . . Garrison Access Hacks . | . . . . Unauthorized Hacks . | . . . . Terminals . | . . . . Fabricators . | . . . . Repair Stations . | . . . . Recycling Units . | . . . . Scanalyzers . | . . . . Garrison Access . | . . . . Data Cores Recovered . | . . . . Used . | . . . . Hacking Detections 2 | . 2 . . Full Trace Events 1 | . 1 . . Feedback Events . | . . . . Feedback Blocked . | . . . . Robot Schematics Acquired . | . . . . Robots Built . | . . . . Authchips . | . . . . Time . | . . . . Total Robot Build Rating . | . . . . Part Schematics Acquired . | . . . . Parts Built . | . . . . Authchips . | . . . . Time . | . . . . Total Part Build Rating . | . . . . Part Studies Acquired . | . . . . Parts Repaired . | . . . . Time . | . . . . Parts Recycled . | . . . . Recycled Matter . | . . . . Retrieved Matter . | . . . . Retrieved Components . | . . . . Parts Scanalyzed . | . . . . Part Schematics Acquired . | . . . . Parts Damaged . | . . . . Bothacking | -11 -10 -10 -10 ------------ Run | Yrd Mat Min Sub Used RIF Installer . | . . . . Robots Hacked . | . . . . Non-combat . | . . . . Combat . | . . . . Robot Hacks Applied . | . . . . Relay Couplers Released . | . . . . Fabnet Peak Effective % . | . . . . Robots Rewired . | . . . . Allies Hacked . | . . . . Hacks Repelled . | . . . . Allies | -11 -10 -10 -10 -------- Run | Yrd Mat Min Sub Total Allies . | . . . . Largest Group . | . . . . Highest-Rated Group . | . . . . Highest-Rated Ally . | . . . . Total Orders . | . . . . Ally Attacks . | . . . . Total Damage . | . . . . Kills . | . . . . Allies Corrupted . | . . . . Allies Melted . | . . . . Intel | -11 -10 -10 -10 ------- Run | Yrd Mat Min Sub Active Infowar (turns) 565 | 36 50 242 237 Terrain 565 | 36 50 242 237 Robot Analysis Total . | . . . . Derelict Logs Recovered . | . . . . Drone Launches . | . . . . Drone Recoveries . | . . . . Exploration | -11 -10 -10 -10 ------------- Run | Yrd Mat Min Sub Turns Passed 685 | 110 50 242 283 Spaces Moved 685 | 64 58 293 270 Core 14 | 5 . . 9 Treads . | . . . . Legs . | . . . . Wheels 671 | 59 58 293 261 Hover . | . . . . Flight . | . . . . Fastest Speed 50 | 50 80 80 80 Average Speed 82 | 77 80 80 86 Slowest Speed 300 | 80 80 80 300 Overloaded Moves . | . . . . Propulsion Burnouts . | . . . . Robots Hopped . | . . . . Potential Cave-ins . | . . . . Cave-ins Triggered . | . . . . Exploration Rate (%) 25 | 3 16 64 19 Regions Visited 3 Branch Regions 2 Pre-discovered Areas . | . . . . Known Exits Taken . | . . . . Unknown Exits Taken 3 | 1 1 1 . Scrap Searched 1 | . . 1 . Spaces Dug . | . . . . Terrain Destroyed . | . . . . Melee . | . . . . Projectile . | . . . . AOE . | . . . . Terrain Rammed . | . . . . Walls Destroyed . | . . . . Machines Disabled . | . . . . Actions | -11 -10 -10 -10 --------- Run | Yrd Mat Min Sub Total 754 | 92 61 298 303 Wait . | . . . . Move 682 | 63 57 292 270 Hop . | . . . . Pick Up 14 | 8 2 . 4 Fast Attach 7 | 7 . . . Attach 3 | . . . 3 Detach . | . . . . Swap 1 | . 1 . . Drop 2 | . 1 . 1 Fire 32 | 14 . 1 17 Melee . | . . . . Ram 6 | . . 5 1 Kick . | . . . . Crush . | . . . . Escape Stasis . | . . . . Rewire 7 | . . . 7 Trap . | . . . . Miscellaneous . | . . . . Route ------- -11/Scrapyard -10/Materials -10/Mines -10/Subcaves History --------- Turn | Location | Event 8 | -11/Scrapyard | Discovered new exit (range 15) 111 | -11/Scrapyard | Entered Materials 154 | -10/Materials | Discovered new exit (range 8) 161 | -10/Materials | Entered Mines 250 | -10/Mines | Received a Rocket Launcher from a helpful Derelict 294 | -10/Mines | A weapon hastily lodged in a ceiling crevice suddenly fell to the ground 312 | -10/Mines | Build established: Mutant 393 | -10/Mines | Discovered new exit (range 10) 403 | -10/Mines | Entered Subcaves 404 | -10/Subcaves | Approached by a straggling Scientist 588 | -10/Subcaves | Ambushed by Subdwellers from Twisted Machinery 655 | -10/Subcaves | Ambushed by Subdweller buried in earth 656 | -10/Subcaves | Core integrity fell below 50% 675 | -10/Subcaves | Ambushed by Subdweller buried in earth 684 | -10/Subcaves | Core integrity fell below 20% 686 | -10/Subcaves | Destroyed by R6-TNF(R) with Subdweller Machine Gun Last Messages --------------- G1-VY1(R) destroyed. Dropped Lgt. Ion Engine. Acquired Sub. Power Source. Med. Laser destroyed. Wheel destroyed. Slammed into C2-MNO(R). Imp. Terrain Scanner destroyed. System corrupted by crushing effect (+5). C2-MNO(R) affixes Scrap Shield Fragment to Scrap Shield. Acquired 18 matter. Wheel destroyed. C2-MNO(R) destroyed. Acquired Scrap Shield Fragment. Sml. Laser destroyed. EM-4F2(R): "FREEEEDUMB!" Acquired Lgt. Ion Engine. Wheel destroyed. System corrupted: Ion Engine rejected. R6-TNF(R): "ARGHSUB!" Map ----- +----------------------------------------------------+ | ?????????????????????????????????????????????????? | | ?????????????????????????????????????????????????? | | ?????????????????????????????????????????????????? | | ?????????????????????????????????????????????????? | | ?????????????????????????????????????????????????? | | ?????????????????????????????????????????????????? | | ?????????????????????????????????????????????????? | | ?????????????????????????????????????????????????? | | ?????????????????????????????????????????????????? | | ?????????????????????????????????????????????????? | | ?????????????????????????????????????????????????? | | ?????????????????????????????????????????????????? | | ?????????????????????????????????????????????????? | | ?????????????????????????????????????????????????? | | ?????????????????????????????????????????????????? | | ? ?????????????#?????????????????????????????????? | | # ?????????????????????????????????????????#?????? | | # ??????????????????????????#?????????????#??????? | | # ##????????????????####?????????????????????????# | | # ##?????????????### ##????????????##??????????? | | ???? ?#####?## ##?????#?????????????????? | | ??????# ### % ##??????????????????##### | | ??????## #####??#??#??????### # # | | %% ?????## ;#;####?????????# | | #?????# ## ;# ##???????## | | ###???# % ##### @ ;; # #??#### | | ##### ########## R ; #### | | ## #????## ;R | | % #???# | | ## #### #?# % R" | | ### ##???? ## ;"""" | | ##?# ##?????? ## #"" | | #??###?????????## ########## | | !& #???????????????#### ####????????# #### | | ##%! ##?????????????????###?????????#######??? | | ###&=% ##??????#?????????????????????#???#????? | | ## ## ##????????????????????????????????????? | | ?### #?????????????#???????????????????????? | | ### ##??????#??????????????????????????????? | | # ##????##????#??????????????#????#???????? | | ####??????#???????????????????????????????? | | ##??????????????????????#?????????????????#? | | #####??##???#????????????????????????????????#?? | | #????#????#????#?#??????????????????#?????????? | | ##????????????????????????????????????????????? | | ##???????????????????????????????????????????? | | ########??#???????????????????????????#?????? | | # # & #????????????????????????????????????? | | ### "#????????????????????????????????????? | | #?## " "#????????????????????????????????????? | +----------------------------------------------------+ Best States ------------- Heat Dissipation 25 Energy Generation 10 Energy Capacity 250 Matter Stores 300 Matter Capacity 300 Sight Range 16 Terrain Scan Range 16 Terrain Scan Density 10 Evasion (%) 44 Item Schematics ----------------- None Robot Schematics ------------------ None Fabricated ------------ Nothing Repaired ---------- Nothing Studied --------- None Alien Tech Used ----------------- None Achievements -------------- Do Not Disturb Challenges ------------ None Game ------ Seed whodovoodoo Manual? 1 Play Time 00:10:45 Cumulative 44.3 hours Start 2026.03.21 @ 17:46:40 End 2026.03.22 @ 11:32:14 Sessions 3 Manual Loads 0 Difficulty Rogue Special Mode None Game No. 48 Rogue 19 Adventurer 0 Explorer 29 Win Type - Total 0 Types 0/0/0/0/0/0/0/0/0/0 Lore% 4 Gallery% 26 Achievement% 16 Wizard Run 0 Options --------- Layout 1 ASCII 1 Keyboard 1 Movement Vi Keybinds 0 Fullscreen 1 Font 24/Smallcaps Map View 50x35 Zoom Use 0% Tactical HUD 0 Map Filters NONE Filters NONE Steam 1 RUN: 31515d2b-2f02-4393-aa04-18f732fa7163